Cogmind - Beta 14 @@@ ROGUE MODE // 2025.03.09 @ 12:41:14 Player: Skergy Result: Destroyed by 52-9ZG(R) with Subdweller Beam Cannon Performance ------------- Evolutions (0) 0 Regions Visited (2) 400 Robots Destroyed (23) 115 Value Destroyed (399) 399 Prototype IDs (2) 40 Alien Tech Used (0) 0 Bonus (0) 0 TOTAL SCORE: 954 Bonus ------- None Cogmind --------- Core Integrity 0/250 Matter 84/300 Energy 125/125 System Corruption 0% Temperature Cool (9) Movement Rolling (195) Ox7 Location -10/Subcaves Parts ------- > --- POWER (1) -------- Light Ion Engine > --- PROPULSION (2) --- Armored Wheel > --- UTILITY (2) ------ Huge Storage Unit Targeting Computer > --- WEAPON (2) ------- Shotgun Light Cannon > --- INVENTORY (25) --- Light Treads Light Treads Aluminum Leg Aluminum Leg Aluminum Leg Compact Wheel Compact Wheel Armored Wheel High-capacity Storage Unit Medium Matter Pod (100) Medium Matter Pod (100) Visual Processing Unit Terrain Scanner Targeting Computer ECM Suite ECM Suite Core Shielding Light Armor Plating Riot Gun Assault Rifle Shotgun Shotgun Shotgun Peak State ------------ > --- POWER ------------ Light Nuclear Core > --- PROPULSION ------- Armored Wheel Armored Wheel > --- UTILITY ---------- Huge Storage Unit Targeting Computer > --- WEAPON ----------- Shotgun Light Cannon > --- INVENTORY -------- Light Ion Engine Light Treads Light Treads Aluminum Leg Aluminum Leg Aluminum Leg Compact Wheel Compact Wheel Armored Wheel High-capacity Storage Unit Medium Matter Pod Medium Matter Pod Visual Processing Unit Terrain Scanner Targeting Computer ECM Suite ECM Suite Core Shielding Light Armor Plating Assault Rifle Assault Rifle Shotgun Shotgun Shotgun Welding Torch [Rating: 15] Favorites ----------- Power Light Nuclear Core Engine Ion Engine Power Core Light Nuclear Core Propulsion Armored Wheel Wheel Armored Wheel Utility Targeting Computer Storage Huge Storage Unit Processor Targeting Computer Weapon Light Cannon Ballistic Gun Shotgun Ballistic Cannon Light Cannon Special Weapon Welding Torch Build | -11 -10 -10 ------- Run | Yrd Mat Sub Slots Evolved . | . . . Power . | . . . Propulsion . | . . . Utility . | . . . Weapon . | . . . Parts Attached 20 | 6 11 3 Power 4 | 1 2 1 Engine 2 | 1 . 1 Core 2 | . 2 . Reactor . | . . . Propulsion 5 | 2 3 . Treads . | . . . Leg . | . . . Wheel 5 | 2 3 . Hover . | . . . Flight . | . . . Utility 5 | 1 4 . Device . | . . . Storage 3 | 1 2 . Processor 2 | . 2 . Hackware . | . . . Protection . | . . . Artifact . | . . . Weapon 6 | 2 2 2 Energy Gun . | . . . Energy Cannon . | . . . Ballistic Gun 3 | 2 1 . Ballistic Cannon 2 | . 1 1 Launcher . | . . . Special Weapon 1 | . . 1 Impact Weapon . | . . . Slashing Weapon . | . . . Piercing Weapon . | . . . Special Melee Weapon . | . . . Unidentified Prototypes . | . . . Parts Lost 2 | . . 2 Power 1 | . . 1 Propulsion 1 | . . 1 Utility . | . . . Weapon . | . . . Highest Loss Streak 1 | . . 1 To Critical Strikes . | . . . Average Slot Usage (%) 99 | . 99 99 Engine 2 | . 2 1 Core 11 | . 11 12 Wheel 27 | . 28 27 Storage 14 | . 14 14 Processor 13 | . 13 14 Ballistic Gun 17 | . 18 14 Ballistic Cannon 10 | . 9 14 Peak Build Rating 15 | 6 15 15 Average Rating 12 | 4 11 14 On Entrance 7 | . 6 15 Naked Turns . | . . . Heaviest Build 91 | 14 91 91 Greatest Support 32 | 32 32 24 Greatest Overweight (x) 7 | 2 3 7 Average Overweight (x) 1 | . 1 3 Largest Inventory Capacity 25 | 8 25 25 Average Capacity 19 | 7 17 25 Most Carried 25 | 6 25 25 Average Carried 18 | 3 16 24 Final Capacity 25 | 8 25 25 Final Carried 25 | 6 25 23 Class Distribution -------------------- 100% | Mutant Dominant Class ---------------- Mutant | -10/Materials Mutant | -10/Subcaves Resources | -11 -10 -10 ----------- Run | Yrd Mat Sub Matter Collected 752 | 185 506 61 Remotely . | . . . Salvage Created 582 | . 537 45 Parts 56 | . 45 11 Haulers Intercepted 2 | . 2 . Recyclers Shooed . | . . . Parts Field Recycled . | . . . Retrieved Matter . | . . . Parts Self-Destructed 8 | . . 8 Prevented . | . . . Kills | -11 -10 -10 ------- Run | Yrd Mat Sub Combat Hostiles Destroyed 16 | . 12 4 Guns 12 | . 11 1 Cannons 4 | . 1 3 Classes Destroyed 6 | . 5 1 Worker 3 | . 3 . Hauler 2 | . 2 . Watcher 2 | . 2 . Swarmer 9 | . 6 3 Grunt 6 | . 6 . Subdweller 1 | . . 1 Best Kill Streak 9 | . 9 3 Combat Bots Only 5 | . 5 3 Max Kills in Single Turn 1 | . 1 1 Gunslinging . | . . . Exploded . | . . . Melee . | . . . Uniques/NPCs Destroyed . | . . . Combat | -11 -10 -10 -------- Run | Yrd Mat Sub Hostile Shots Fired 99 | . 54 45 Missed 33 | . 21 12 Damage Taken 1012 | . 428 584 Core 256 | . 101 155 Absorbed by Shields . | . . . Core Remaining (%) 100 | 100 . . Volleys Fired 76 | . 38 38 Largest 2 | . 2 2 Hottest 58 | . 58 58 Shots Fired 141 | . 75 66 Gun 91 | . 63 28 Cannon 47 | . 12 35 Launcher . | . . . Special 3 | . . 3 Kinetic 138 | . 75 63 Thermal 3 | . . 3 Explosive . | . . . Electromagnetic . | . . . Robot Hit Streak 13 | . 13 8 Robot Miss Streak 6 | . 5 6 Penetration Max . | . . . Secondary Targets 4 | . 4 . Max Gunslinging Chain 1 | . 1 . Shots Hit Robots 73 | . 45 28 Core Hits 35 | . 29 6 Critical Kills 1 | . 1 . Critical Parts Destroyed 1 | . 1 . Critical Strikes 5 | . 4 1 Destroy 2 | . 2 . Blast 3 | . 2 1 Melee Attacks . | . . . Impact . | . . . Slashing . | . . . Piercing . | . . . Sneak Attacks . | . . . Combat Hostiles . | . . . Follow-up Attacks . | . . . Damage Inflicted 1087 | . 661 426 Guns 805 | . 588 217 Cannons 282 | . 73 209 Explosions . | . . . Melee . | . . . Ramming . | . . . Kinetic 1087 | . 661 426 Thermal . | . . . Explosive . | . . . Electromagnetic . | . . . Impact . | . . . Slashing . | . . . Piercing . | . . . Highest Corruption . | . . . Average Corruption . | . . . Corruption Purged . | . . . Corruption Blocked . | . . . Overload Shots . | . . . Overflow Damage . | . . . Projectiles . | . . . Explosions . | . . . Melee . | . . . Knockbacks 5 | . 2 3 Impact . | . . . Kinetic 5 | . 2 3 Secondary . | . . . Self-Inflicted Damage . | . . . Shots . | . . . Rammed . | . . . Targets Rammed . | . . . Kicked . | . . . Crushed . | . . . Highest Temperature 21 | . 21 . Average Temperature 6 | . 6 . Received Heat Transfer 246 | . 111 135 Siege Activations . | . . . Robots Corrupted . | . . . Combat Hostiles . | . . . Parts Fried . | . . . Impact Corruptions . | . . . Robots Melted . | . . . Combat Hostiles . | . . . Parts Melted . | . . . Heat Transferred . | . . . Parts Sabotaged . | . . . Parts Stolen . | . . . Parts Stripped . | . . . Power Chain Reactions . | . . . Alert | -11 -10 -10 ------- Run | Yrd Mat Sub Peak Influence 335 | . 335 . Initial . | . . . Average 110 | . 115 . Maximum Alert Level 1 | . 1 . Low Security (%) 88 | 100 88 . Level 1 11 | . 11 . Level 2 . | . . . Level 3 . | . . . Level 4 . | . . . Level 5 . | . . . High Security . | . . . Max Security . | . . . Squads Dispatched 2 | . 2 . Investigation 2 | . 2 . Extermination . | . . . Reinforcement . | . . . Assault . | . . . Garrison . | . . . Intercept . | . . . Searches Triggered . | . . . Construction Impeded . | . . . Haulers Reinforced . | . . . Active Scanning Responses . | . . . Cargo Convoy Interrupts . | . . . Stealth | -11 -10 -10 --------- Run | Yrd Mat Sub Distress Signals 1 | . 1 . Communications Jammed . | . . . Distress Signals . | . . . Times Spotted 23 | . 18 5 Peak Tracking Total 4 | . 4 3 Tactical Retreats . | . . . Traps | -11 -10 -10 ------- Run | Yrd Mat Sub Traps Triggered 3 | . 3 . Indirectly . | . . . Trap Hack Attempts . | . . . Triggered . | . . . Disarmed . | . . . Reprogrammed 5 | . 5 . Reused . | . . . Traps Extracted . | . . . Installed . | . . . Triggered . | . . . Machines | -11 -10 -10 ---------- Run | Yrd Mat Sub Machines Disabled . | . . . Max in Single Turn . | . . . Machines Repaired . | . . . Machines Dismantled . | . . . Machines Sabotaged . | . . . Overloaded Fab Kills . | . . . Hacking | -11 -10 -10 --------- Run | Yrd Mat Sub Machines Accessed 10 | . 9 1 Terminals 7 | . 7 . Fabricators . | . . . Repair Stations . | . . . Recycling Units 2 | . 2 . Scanalyzers . | . . . Garrison Access . | . . . Total Hacks 42 | . 37 5 Successful 31 | . 26 5 Failed 11 | . 11 . Catastrophic . | . . . Database Lockouts . | . . . Manual 26 | . 26 . Terminals 30 | . 30 . Fabricators . | . . . Repair Stations . | . . . Recycling Units 7 | . 7 . Scanalyzers . | . . . Garrison Access . | . . . Terminal Hacks 11 | . 6 5 Record 5 | . . 5 Robot Analysis 1 | . 1 . Prototype ID Bank 1 | . 1 . Reprogram Traps 2 | . 2 . Zone Layout 2 | . 2 . Fabricator Hacks . | . . . Repair Station Hacks . | . . . Recycling Unit Hacks 4 | . 4 . Process 1 | . 1 . Report Inventory 2 | . 2 . Retrieve Matter 1 | . 1 . Scanalyzer . | . . . Garrison Access Hacks . | . . . Unauthorized Hacks 16 | . 16 . Terminals 14 | . 14 . Track 3 | . 3 . Assimilate 2 | . 2 . Botnet 7 | . 7 . Operators 2 | . 2 . Fabricators . | . . . Repair Stations . | . . . Recycling Units 2 | . 2 . Reject 2 | . 2 . Scanalyzers . | . . . Garrison Access . | . . . Data Cores Recovered . | . . . Used . | . . . Hacking Detections 8 | . 8 . Full Trace Events . | . . . Feedback Events . | . . . Feedback Blocked . | . . . Robot Schematics Acquired . | . . . Robots Built . | . . . Authchips . | . . . Time . | . . . Total Robot Build Rating . | . . . Part Schematics Acquired . | . . . Parts Built . | . . . Authchips . | . . . Time . | . . . Total Part Build Rating . | . . . Parts Repaired . | . . . Time . | . . . Parts Recycled . | . . . Recycled Matter 97 | . 97 . Retrieved Matter 97 | . 97 . Retrieved Components . | . . . Parts Scanalyzed . | . . . Part Schematics Acquired . | . . . Parts Damaged . | . . . Bothacking | -11 -10 -10 ------------ Run | Yrd Mat Sub Used RIF Installer . | . . . Robots Hacked . | . . . Non-combat . | . . . Combat . | . . . Robot Hacks Applied . | . . . Relay Couplers Released . | . . . Fabnet Peak Effective % . | . . . Robots Rewired . | . . . Allies Hacked . | . . . Hacks Repelled . | . . . Allies | -11 -10 -10 -------- Run | Yrd Mat Sub Total Allies . | . . . Largest Group . | . . . Highest-Rated Group . | . . . Highest-Rated Ally . | . . . Total Orders . | . . . Ally Attacks . | . . . Total Damage . | . . . Kills . | . . . Allies Corrupted . | . . . Allies Melted . | . . . Intel | -11 -10 -10 ------- Run | Yrd Mat Sub Robot Analysis Total 1 | . 1 . Derelict Logs Recovered . | . . . Drone Launches . | . . . Drone Recoveries . | . . . Exploration | -11 -10 -10 ------------- Run | Yrd Mat Sub Turns Passed 1820 | 61 1256 503 Spaces Moved 1089 | 46 753 290 Core 8 | 8 . . Treads . | . . . Legs . | . . . Wheels 1081 | 38 753 290 Hover . | . . . Flight . | . . . Fastest Speed 50 | 50 100 135 Average Speed 121 | 100 116 135 Slowest Speed 195 | 150 135 195 Overloaded Moves . | . . . Propulsion Burnouts . | . . . Robots Hopped . | . . . Cave-ins Triggered . | . . . Exploration Rate (%) 43 | 5 98 28 Regions Visited 2 Branch Regions 1 Pre-discovered Areas 1 | . . 1 Known Exits Taken . | . . . Unknown Exits Taken 2 | 1 1 . Scrap Searched . | . . . Spaces Dug . | . . . Terrain Destroyed . | . . . Melee . | . . . Projectile . | . . . AOE . | . . . Terrain Rammed . | . . . Walls Destroyed . | . . . Machines Disabled . | . . . Actions | -11 -10 -10 --------- Run | Yrd Mat Sub Total 1449 | 58 1057 334 Wait 232 | . 232 . Move 1087 | 45 752 290 Hop . | . . . Pick Up 25 | 7 17 1 Fast Attach 7 | 5 2 . Attach 3 | 1 . 2 Detach . | . . . Swap 10 | . 9 1 Drop 9 | . 7 2 Fire 76 | . 38 38 Melee . | . . . Ram . | . . . Kick . | . . . Crush . | . . . Escape Stasis . | . . . Rewire . | . . . Trap . | . . . Miscellaneous . | . . . Route ------- -11/Scrapyard -10/Materials (discovered 6 exits: [*Mat x3] / [*Min x2] / *Sub) -10/Subcaves (discovered 1 exit: [*Mat]) History --------- Turn | Location | Event 22 | -11/Scrapyard | Discovered new exit (range 15) 62 | -11/Scrapyard | Entered Materials 163 | -10/Materials | Discovered new exit (range 16) 306 | -10/Materials | Build established: Mutant 511 | -10/Materials | Discovered new exit (range 14) 598 | -10/Materials | Discovered new exit (range 10) 776 | -10/Materials | Discovered new exit (range 5) 778 | -10/Materials | Discovered new exit (range 10) 893 | -10/Materials | Discovered new exit (range 11) 1318 | -10/Materials | Entered Subcaves 1443 | -10/Subcaves | Core integrity fell below 50% 1530 | -10/Subcaves | Visited Clippyterm 1534 | -10/Subcaves | Learned Factory fabricator intel 1534 | -10/Subcaves | Learned Factory emergency access door positions 1579 | -10/Subcaves | Learned location of Zion (-7) 1579 | -10/Subcaves | Met a Zionite searching for "candidates" 1616 | -10/Subcaves | A swath of the cavern ceiling suddenly collapsed 1793 | -10/Subcaves | Discovered new exit (range 12) 1818 | -10/Subcaves | Core integrity fell below 20% 1821 | -10/Subcaves | Destroyed by 52-9ZG(R) with Subdweller Beam Cannon Last Messages --------------- responses. --DD-NU8 01550_ Acquired 10 matter. 01554_ Acquired 11 matter. 01579_ 1Z-PLH(z): "Hey you! It's really dangerous down here, I feel that you could die at any moment. For your health and safety might I suggest a trip to Zion?" World map updated: -7/Zion. 01604_ Dropped Assault Rifle. 01605_ Acquired Riot Gun. 01611_ Subatomizers dissect the Assault Rifle. A swath of the cavern ceiling suddenly collapses. 01668_ Dropped Welding Torch. 01768_ Lgt. Nuclear Core destroyed. 01775_ 4W-8PR(R) knocked back. 01787_ 4W-8PR(R) suffers critical hit (Blast). 01787_ 4W-8PR(R) destroyed. 01789_ Subatomizers dissect the Sub. Optics. 01793_ EXIT=FOUND 01799_ Arm. Wheel destroyed. 01803_ Subatomizers dissect the Sub. Optics. Map ----- +----------------------------------------------------+ | | | ?????????????????????????????????????????????????? | | ?????????????????????????????????????????????????? | | ?????????????????????????????????????????????????? | | ?????????????????????????????????????????????????? | | ?????????????????????????????????????????????????? | | ?????????????????????????????????????????????????? | | ?????????????????????????????????????????????????? | | ?????????????????????????????????????????????????? | | ?????????????????????????????????????????????????? | | ?????????????????????????????????????????????????? | | ?????????????????????????????????????????????????? | | ?????????????????????????????????????????????????? | | ?????????????????????????????????????????????????? | | ?????????????????????????????????????????????????? | | ??????????????????????????????############???????? | | ?????????????????##??????????## ## ###?????? | | ?????????????????? ????????## ## ##????? | | ??????????????????? ???????# ## ###??? | | ???????????????????? ???????# #### | | ????????????????????# ??????# ## # | | ????????????????????#""????## ## ### | | ????????????????????#" ??## ## ## | | ????????????????????#"% ### ## ## ### | | ???????????????